fUST/lending_fUST_20260111
["ID","MTS","AMOUNT","RATE_DAILY","PERIOD"]
[401248464,1768072241939,-509.39,0.00013698,2]
[401248466,1768072241948,-509.39,0.00013698,2]
[401248468,1768072241957,-509.39,0.00013698,2]
[401248470,1768072241966,-900.827532,0.00013699,2]
[401248472,1768072241975,-500.0,0.00013699,2]
[401248474,1768072241984,-258.35353339,0.00013908,2]
[401248476,1768072241993,-1000.0,0.00014247,2]
[401248478,1768072242002,-4609.0,0.00014632,2]
[401248480,1768072242011,-1152.0,0.00014634,2]
[401248482,1768072242020,-1500.0,0.00014795,2]
[401248484,1768072242029,-1000.0,0.00014932,2]
[401248486,1768072242038,-244.0,0.00014932,2]
[401248487,1768072242047,-498.9723282,0.00015342,2]
[401248490,1768072242057,-292.5473834,0.00015908,2]
[401248492,1768072242066,-1000.0,0.00016426,2]
[401248494,1768072242075,-492.0,0.00016426,2]
[401248496,1768072242084,-260.11060349,0.00016438,2]
[401248498,1768072242093,-2350.97413579,0.00016625,2]
[401248500,1768072242102,-326.74123341,0.00017908,2]
[401248502,1768072242111,-1000.0,0.00018068,2]
[401248504,1768072242120,-791.0,0.00018068,2]
[401248506,1768072242129,-150.1,0.00018898,2]
[401248508,1768072242138,-6834.71,0.000193,2]
[401248510,1768072242147,-345.46,0.000193,2]
[401248512,1768072242157,-1000.0,0.00019875,2]
[401248514,1768072242167,-1000.0,0.00019875,2]
[401248516,1768072242176,-360.93508342,0.00019908,2]
[401248518,1768072242185,-467.73613437,0.00020251,2]
[401248520,1768072242194,-918.54832174,0.00020412,4]
[401248522,1768072242203,-1041.66666667,0.00021305,2]
[401248524,1768072242212,-170.12005958,0.00021844,14]
[401248526,1768072242221,-1000.0,0.00021862,10]
[401248528,1768072242230,-1000.0,0.00021862,10]
[401248530,1768072242239,-579.0,0.00021862,10]
[401248532,1768072242250,-395.12893343,0.00021908,2]
[401248533,1768072242259,-170.12005958,0.00023277,15]
[401248535,1768072242268,-2350.97413579,0.00023288,2]
[401248538,1768072242278,-429.32278343,0.00023908,2]
[401248539,1768072242287,-151.0,0.00024,7]
[401248541,1768072242296,-1000.0,0.00024049,10]
[401248543,1768072242305,-1000.0,0.00024049,10]
[401248545,1768072242314,-1000.0,0.00024049,10]
[401248547,1768072242322,-170.12005958,0.00024709,17]
[401248549,1768072242332,-218.0,0.00024959,14]
[401248551,1768072242340,-250.0,0.00025343,2]
[401248553,1768072242349,-500.0,0.00025636,7]
[401248555,1768072242358,-463.51663344,0.00025908,2]
[401248558,1768072242372,-170.12005958,0.00026142,18]
[401248560,1768072242383,-1000.0,0.00026454,30]
[401248562,1768072242394,-1000.0,0.00026454,30]
[401248564,1768072242403,-1000.0,0.00026454,30]
[401248566,1768072242415,-715.0,0.00026454,30]
[401248568,1768072242424,-151.0,0.000266,12]
[401248570,1768072242433,-231.35629748,0.00027313,5]
[401248572,1768072242443,-1869.07359296,0.0002739,2]
[401248574,1768072242452,-170.12005958,0.00027574,20]
[401248576,1768072242461,-497.71048345,0.00027908,2]
[401248578,1768072242470,-345.46,0.00028,14]
[401248580,1768072242480,-169.0,0.00028247,28]
[401248582,1768072242489,-6834.71,0.000283,2]
[401248584,1768072242499,-516.35781364,0.00028653,7]
[401248586,1768072242509,-407.88214472,0.00028999,2]
[401248588,1768072242519,-170.12005958,0.00029006,21]
[401248590,1768072242528,-1000.0,0.00029099,30]
[401248593,1768072242538,-1000.0,0.00029099,30]
[401248595,1768072242547,-1000.0,0.00029099,30]
[401248597,1768072242556,-258.38,0.0002911,2]
[401248599,1768072242565,-151.0,0.000292,19]
[401248600,1768072242575,-588.14361118,0.00029795,2]
[401248603,1768072242584,-312.48347739,0.00029795,2]
[401248605,1768072242594,-407.88214464,0.00029887,2]
[401248607,1768072242604,-531.90433346,0.00029908,2]
[401248609,1768072242613,-2350.97413579,0.0002995,2]
[401248610,1768072242623,-352.89,0.00030137,2]
[401248613,1768072242632,-582.952,0.0003037,26]
[401248615,1768072242642,-170.12005958,0.00030439,23]
[401248616,1768072242651,-407.88214464,0.00030776,2]
[401248618,1768072242660,-155.0,0.00031534,47]
[401248621,1768072242669,-407.88214464,0.00031664,2]
[401248623,1768072242679,-151.0,0.000318,10]
[401248625,1768072242688,-170.12005958,0.00031871,24]
[401248626,1768072242697,-566.09818347,0.00031908,2]
[401248628,1768072242706,-407.88214464,0.00032553,2]
[401248631,1768072242716,-999.0,0.00032876,120]
[401248633,1768072242725,-151.6053793,0.000332,117]
[401248635,1768072242734,-151.6053793,0.000332,117]
[401248637,1768072242743,-151.6053793,0.000332,117]
[401248639,1768072242753,-170.12005958,0.00033304,26]
[401248640,1768072242761,-407.88214464,0.00033441,2]
[401248641,1768072242770,-210.0,0.00033699,5]
[401248642,1768072242779,-600.29203347,0.00033908,120]
[401248643,1768072242787,-999.0,0.00033972,120]
[401248644,1768072242796,-407.88214464,0.0003433,2]
[401248645,1768072242805,-151.0,0.000344,13]
[401248646,1768072242814,-600.0,0.00034407,30]
[401248647,1768072242823,-324.5,0.00034407,30]
[401248648,1768072242831,-270.0,0.00034521,5]
[401248649,1768072242840,-170.12005958,0.00034736,28]
[401248650,1768072242849,-5058.79910613,0.00034994,52]
[401248651,1768072242858,-999.0,0.00035068,120]
[401248652,1768072242867,-9999.3338094,0.00035213,2]
[401248653,1768072242875,-407.88214464,0.00035218,2]
[401248654,1768072242884,-330.0,0.00035342,5]
[401248655,1768072242893,-532.55,0.00035616,30]
[401248656,1768072242903,-334.34878739,0.00035616,7]
[401248657,1768072242911,-156.012,0.00035755,2]
[401248658,1768072242920,-156.012,0.00035855,2]
[401248659,1768072242929,-634.48588348,0.00035908,120]
[401248660,1768072242938,-327905.18107711,0.00035937,4]
[401248661,1768072242947,-156.012,0.00035955,2]
[401248662,1768072242955,-156.012,0.00036055,2]
[401248664,1768072242965,-407.88214464,0.00036107,2]
[401248666,1768072242977,-258.37953721,0.00036147,2]
[401248667,1768072242991,-156.012,0.00036155,2]
[401248669,1768072243001,-731.96785671,0.00036164,120]
[401248671,1768072243012,-500.0,0.00036164,30]
[401248673,1768072243022,-180.020001,0.00036164,5]
[401248675,1768072243032,-170.12005958,0.00036169,29]
[401248677,1768072243043,-161.0,0.00036466,89]
[401248680,1768072243053,-2350.97413579,0.00036612,2]
[401248682,1768072243063,-500.0,0.00036712,2]
[401248683,1768072243073,-500.0,0.00036712,2]
[401248686,1768072243082,-500.0,0.00036712,2]
[401248688,1768072243091,-500.0,0.00036712,2]
[401248690,1768072243100,-500.0,0.00036712,2]
[401248692,1768072243109,-500.0,0.00036712,2]
[401248694,1768072243118,-500.0,0.00036712,2]
[401248696,1768072243127,-500.0,0.00036712,2]
[401248698,1768072243137,-500.0,0.00036712,2]
[401248701,1768072243146,-500.0,0.00036712,2]
[401248703,1768072243155,-500.0,0.00036712,2]
[401248705,1768072243165,-500.0,0.00036712,2]
[401248707,1768072243174,-500.0,0.00036712,2]
[401248708,1768072243183,-500.0,0.00036712,2]
[401248711,1768072243193,-500.0,0.00036712,2]
[401248712,1768072243203,-500.0,0.00036712,2]
[401248715,1768072243212,-502.32745149,0.00036712,2]
[401248716,1768072243221,-500.0,0.00036712,2]
[401248718,1768072243231,-2479.36,0.00036712,30]
[401248720,1768072243240,-2479.36,0.00036712,30]
[401248722,1768072243249,-2479.36,0.00036712,30]
[401248725,1768072243259,-2479.36,0.00036712,30]
[401248727,1768072243268,-2479.36,0.00036712,30]
[401248728,1768072243277,-2479.36,0.00036712,30]
[401248730,1768072243286,-2479.36,0.00036712,30]
[401248732,1768072243295,-2479.36,0.00036712,30]
[401248734,1768072243306,-2479.36,0.00036712,30]
[401248736,1768072243314,-2479.36,0.00036712,30]
[401248738,1768072243324,-2479.36,0.00036712,30]
[401248740,1768072243333,-2479.36,0.00036712,30]
[401248742,1768072243342,-2479.36,0.00036712,30]
[401248744,1768072243351,-2479.36,0.00036712,30]
[401248746,1768072243360,-2479.36,0.00036712,30]
[401248748,1768072243370,-2479.36,0.00036712,30]
[401248750,1768072243379,-2479.36,0.00036712,30]
[401248752,1768072243391,-2479.36,0.00036712,30]
[401248754,1768072243401,-2479.36,0.00036712,30]
[401248756,1768072243410,-2479.36,0.00036712,30]
[401248758,1768072243419,-2479.36,0.00036712,30]
[401248760,1768072243430,-2479.36,0.00036712,30]
[401248773,1768072243529,-2479.36,0.00036712,30]
[401248775,1768072243550,-2479.42,0.00036712,30]
[401248777,1768072243559,-4887.27,0.00036712,30]
[401248779,1768072243568,-4887.27,0.00036712,30]
[401248781,1768072243577,-4887.27,0.00036712,30]
[401248783,1768072243586,-4887.27,0.00036712,30]
[401248785,1768072243595,-4887.27,0.00036712,30]
[401248786,1768072243603,-4887.27,0.00036712,30]
[401248787,1768072243612,-4887.27,0.00036712,30]
[401248788,1768072243621,-4887.27,0.00036712,30]
[401248789,1768072243631,-4887.27,0.00036712,30]
[401248790,1768072243639,-4887.27,0.00036712,30]
[401248791,1768072243648,-4887.27,0.00036712,30]
[401248792,1768072243657,-4887.27,0.00036712,30]
[401248793,1768072243666,-4887.27,0.00036712,30]
[401248794,1768072243675,-4887.27,0.00036712,30]
[401248795,1768072243684,-4887.27,0.00036712,30]
[401248796,1768072243693,-4887.27,0.00036712,30]
[401248797,1768072243702,-4887.27,0.00036712,30]
[401248798,1768072243711,-4887.27,0.00036712,30]
[401248799,1768072243721,-4887.27,0.00036712,30]
[401248800,1768072243730,-4887.27,0.00036712,30]
[401248801,1768072243739,-4887.27,0.00036712,30]
[401248802,1768072243748,-4887.27,0.00036712,30]
[401248803,1768072243757,-4887.27,0.00036712,30]
[401248804,1768072243766,-4887.3,0.00036712,30]
[401248805,1768072243775,-16189.62,0.00036712,30]
[401248806,1768072243784,-16189.62,0.00036712,30]
[401248807,1768072243792,-16189.62,0.00036712,30]
[401248809,1768072243802,-16189.62,0.00036712,30]
[401248811,1768072243810,-16189.62,0.00036712,30]
[401248813,1768072243819,-16189.62,0.00036712,30]
[401248814,1768072243829,-16189.62,0.00036712,30]
[401248815,1768072243837,-16189.62,0.00036712,30]
[401248816,1768072243846,-16189.62,0.00036712,30]
[401248817,1768072243855,-16189.62,0.00036712,30]
[401248818,1768072243865,-16189.62,0.00036712,30]
[401248819,1768072243874,-16189.62,0.00036712,30]
[401248820,1768072243883,-16189.62,0.00036712,30]
[401248821,1768072243892,-16189.62,0.00036712,30]
[401248822,1768072243902,-16189.62,0.00036712,30]
[401248823,1768072243911,-16189.62,0.00036712,30]
[401248824,1768072243922,-16189.62,0.00036712,30]
[401248825,1768072243931,-16189.62,0.00036712,30]
[401248826,1768072243941,-16189.62,0.00036712,30]
[401248827,1768072243950,-16189.62,0.00036712,30]
[401248828,1768072243959,-16189.62,0.00036712,30]
[401248830,1768072243969,-16189.62,0.00036712,30]
[401248831,1768072243978,-16189.62,0.00036712,30]
[401248832,1768072243987,-16189.70100427,0.00036712,30]
[401248833,1768072243996,-26257.46,0.00036712,30]
[401248834,1768072244006,-26257.46,0.00036712,30]
[401248835,1768072244015,-26257.46,0.00036712,30]
[401248837,1768072244025,-26257.46,0.00036712,30]
[401248839,1768072244034,-26257.46,0.00036712,30]
[401248840,1768072244043,-26257.46,0.00036712,30]
[401248842,1768072244053,-26257.46,0.00036712,30]
[401248844,1768072244062,-26257.46,0.00036712,30]
[401248846,1768072244071,-26257.46,0.00036712,30]
[401248849,1768072244081,-26257.46,0.00036712,30]
[401248850,1768072244090,-241.15003758,0.00036712,120]
[401248853,1768072244100,-26257.46,0.00036712,30]
[401248854,1768072244109,-26257.46,0.00036712,30]
[401248857,1768072244119,-26257.46,0.00036712,30]
[401248859,1768072244128,-26257.46,0.00036712,30]
[401248861,1768072244138,-2192.87,0.00036712,30]
[401248862,1768072244147,-26257.46,0.00036712,30]
[401248864,1768072244157,-2192.87,0.00036712,30]
[401248867,1768072244167,-26257.46,0.00036712,30]
[401248869,1768072244176,-2195.79,0.00036712,30]
[401248871,1768072244186,-2192.87,0.00036712,30]
[401248873,1768072244196,-26257.46,0.00036712,30]
[401248875,1768072244206,-2192.87,0.00036712,30]
[401248877,1768072244216,-26257.46,0.00036712,30]
[401248879,1768072244226,-2192.87,0.00036712,30]
[401248881,1768072244235,-2195.79,0.00036712,30]
[401248883,1768072244245,-26257.46,0.00036712,30]
[401248885,1768072244254,-2192.87,0.00036712,30]
[401248886,1768072244263,-2195.79,0.00036712,30]
[401248889,1768072244272,-26257.46,0.00036712,30]
[401248890,1768072244282,-2195.79,0.00036712,30]
[401248893,1768072244292,-2192.87,0.00036712,30]
[401248895,1768072244301,-2195.79,0.00036712,30]
[401248897,1768072244311,-2192.87,0.00036712,30]
[401248899,1768072244320,-2195.79,0.00036712,30]
[401248901,1768072244330,-26257.46,0.00036712,30]
[401248903,1768072244339,-2192.87,0.00036712,30]
[401248905,1768072244349,-2195.79,0.00036712,30]
[401248907,1768072244358,-2192.87,0.00036712,30]
[401248909,1768072244367,-26257.46,0.00036712,30]
[401248911,1768072244377,-2192.87,0.00036712,30]
[401248913,1768072244389,-2195.79,0.00036712,30]
[401248915,1768072244398,-26257.46,0.00036712,30]
[401248917,1768072244407,-2192.87,0.00036712,30]
[401248919,1768072244417,-2195.79,0.00036712,30]
[401248921,1768072244427,-26257.54452659,0.00036712,30]
[401248923,1768072244436,-2192.87,0.00036712,30]
[401248925,1768072244445,-2195.79,0.00036712,30]
[401248927,1768072244454,-2192.87,0.00036712,30]
[401248929,1768072244464,-2195.79,0.00036712,30]
[401248931,1768072244473,-2192.87,0.00036712,30]
[401248933,1768072244483,-2195.79,0.00036712,30]
[401248935,1768072244492,-2192.87,0.00036712,30]
[401248937,1768072244503,-2195.79,0.00036712,30]
[401248939,1768072244513,-2192.87,0.00036712,30]
[401248941,1768072244522,-2195.79,0.00036712,30]
[401248943,1768072244531,-2192.87,0.00036712,30]
[401248945,1768072244540,-2195.79,0.00036712,30]
[401248947,1768072244550,-2192.87,0.00036712,30]
[401248949,1768072244559,-2195.79,0.00036712,30]
[401248951,1768072244570,-2192.87,0.00036712,30]
[401248953,1768072244580,-2195.79,0.00036712,30]
[401248956,1768072244589,-2192.87,0.00036712,30]
[401248958,1768072244598,-2195.79,0.00036712,30]
[401248960,1768072244607,-2192.87,0.00036712,30]
[401248962,1768072244616,-2195.79,0.00036712,30]
[401248964,1768072244626,-2192.87,0.00036712,30]
[401248965,1768072244635,-2195.79,0.00036712,30]
[401248968,1768072244644,-2192.89,0.00036712,30]
[401248970,1768072244655,-2195.79,0.00036712,30]
[401248972,1768072244663,-2195.79,0.00036712,30]
[401248974,1768072244673,-2195.79,0.00036712,30]
[401248975,1768072244682,-2195.88,0.00036712,30]
[401248978,1768072244691,-500.0,0.00036712,30]
[401248980,1768072244700,-500.0,0.00036712,30]
[401248981,1768072244709,-500.0,0.00036712,30]
[401248983,1768072244718,-500.0,0.00036712,30]
[401248985,1768072244727,-500.17912256,0.00036712,30]
[401248987,1768072244736,-5048.48,0.00036712,30]
[401248989,1768072244746,-5048.48,0.00036712,30]
[401248991,1768072244755,-5048.48,0.00036712,30]
[401248994,1768072244765,-5048.48,0.00036712,30]
[401248995,1768072244774,-5048.48,0.00036712,30]
[401248997,1768072244783,-5048.48,0.00036712,30]
[401248999,1768072244793,-5048.48,0.00036712,30]
[401249001,1768072244802,-5048.48,0.00036712,30]
[401249003,1768072244811,-5048.48,0.00036712,30]
[401249005,1768072244821,-5048.48,0.00036712,30]
[401249007,1768072244830,-5048.48,0.00036712,30]
[401249009,1768072244839,-5048.48,0.00036712,30]
[401249011,1768072244849,-5048.48,0.00036712,30]
[401249013,1768072244859,-5048.48,0.00036712,30]
[401249015,1768072244868,-5048.48,0.00036712,30]
[401249017,1768072244878,-5048.48,0.00036712,30]
[401249019,1768072244887,-5048.48,0.00036712,30]
[401249021,1768072244896,-5048.48,0.00036712,30]
[401249023,1768072244905,-5048.48,0.00036712,30]
[401249025,1768072244915,-5048.48,0.00036712,30]
[401249027,1768072244923,-5048.48,0.00036712,30]
[401249029,1768072244933,-5048.48,0.00036712,30]
[401249031,1768072244942,-5048.48,0.00036712,30]
[401249033,1768072244952,-5048.65,0.00036712,30]
[401249035,1768072244961,-500.01,0.00036712,30]
[401249037,1768072244971,-345.46,0.000368,30]
[401249039,1768072244979,-3095.4907845,0.00036991,2]
[401249041,1768072244989,-21267.0853985,0.00036991,2]
[401249043,1768072244998,-5004.4587693,0.00036991,2]
[401249045,1768072245007,-407.88214464,0.00036995,2]
[401249047,1768072245016,-151.6053793,0.00036995,120]
[401249049,1768072245026,-151.0,0.00037037,31]
[401249051,1768072245036,-151.0,0.00037037,31]
[401249053,1768072245046,-277.124706,0.00037037,31]
[401249055,1768072245055,-163.471192,0.00037037,31]
[401249057,1768072245064,-151.0,0.00037037,31]
[401249059,1768072245073,-157.421281,0.00037037,31]
[401249061,1768072245082,-151.0,0.00037037,31]
[401249063,1768072245091,-151.0,0.00037037,31]
[401249065,1768072245100,-151.0,0.00037037,31]
[401249067,1768072245110,-151.0,0.00037037,31]
[401249069,1768072245119,-151.0,0.00037037,31]
[401249071,1768072245127,-151.0,0.00037037,31]
[401249073,1768072245136,-151.0,0.00037037,31]
[401249075,1768072245145,-151.0,0.00037037,31]
[401249077,1768072245154,-151.0,0.00037037,31]
[401249079,1768072245163,-151.0,0.00037037,31]
[401249081,1768072245172,-151.0,0.00037037,31]
[401249083,1768072245181,-151.0,0.00037037,31]
[401249085,1768072245191,-242.550437,0.00037037,31]
[401249087,1768072245200,-152.0,0.00037039,14]
[401249088,1768072245209,-152.0,0.00037039,14]
[401249090,1768072245218,-152.0,0.00037039,14]
[401249092,1768072245228,-152.0,0.00037039,14]
[401249094,1768072245237,-152.0,0.00037039,14]
[401249096,1768072245246,-152.0,0.00037039,14]
[401249098,1768072245254,-152.0,0.00037039,14]
[401249100,1768072245264,-152.0,0.00037039,14]
[401249102,1768072245273,-202.68303487,0.00037039,14]
[401249104,1768072245282,-377.1655679,0.00037041,30]
[401249106,1768072245292,-377.1655679,0.00037041,30]
[401249108,1768072245301,-376.6134449,0.00037041,30]
[401249110,1768072245310,-800.0,0.00037082,7]
[401249112,1768072245319,-500.0,0.00037085,14]
[401249114,1768072245328,-151.0,0.00037095,28]
[401249116,1768072245337,-151.0,0.00037095,28]
[401249118,1768072245347,-151.0,0.00037095,28]
[401249120,1768072245356,-151.0,0.00037095,28]
[401249122,1768072245366,-151.0,0.00037095,28]
[401249124,1768072245376,-151.0,0.00037095,28]
[401249126,1768072245390,-241.887947,0.00037095,28]
[401249128,1768072245400,-315.18853,0.00037095,31]
[401249130,1768072245410,-315.18853,0.00037095,31]
[401249132,1768072245419,-315.18853,0.00037095,31]
[401249134,1768072245430,-315.18853,0.00037095,31]
[401249136,1768072245439,-315.18853,0.00037095,31]
[401249138,1768072245449,-315.18853,0.00037095,31]
[401249140,1768072245460,-315.18853,0.00037095,31]
[401249142,1768072245469,-315.18853,0.00037095,31]
[401249144,1768072245478,-315.18853,0.00037095,31]
[401249146,1768072245487,-315.18853,0.00037095,31]
[401249148,1768072245497,-315.18853,0.00037095,31]
[401249151,1768072245507,-315.18853,0.00037095,31]
[401249152,1768072245516,-315.18853,0.00037095,31]
[401249154,1768072245526,-315.18853,0.00037095,31]
[401249156,1768072245536,-315.18853,0.00037095,31]
[401249158,1768072245545,-315.18853,0.00037095,31]
[401249161,1768072245555,-315.18853,0.00037095,31]
[401249163,1768072245564,-315.18853,0.00037095,31]
[401249165,1768072245572,-315.18853,0.00037095,31]
[401249167,1768072245581,-315.188524,0.00037095,31]
[401249169,1768072245591,-151.0,0.00037095,31]
[401249170,1768072245601,-151.0,0.00037095,31]
[401249173,1768072245611,-163.913875,0.00037095,31]
[401249175,1768072245620,-151.0,0.00037095,31]
[401249177,1768072245631,-151.0,0.00037095,31]
[401249179,1768072245641,-151.0,0.00037095,31]
[401249180,1768072245650,-151.0,0.00037095,31]
[401249183,1768072245659,-214.28838,0.00037095,31]
[401249185,1768072245670,-160.29273,0.00037095,31]
[401249186,1768072245679,-151.0,0.00037095,31]
[401249189,1768072245688,-151.0,0.00037095,31]
[401249190,1768072245697,-151.0,0.00037095,31]
[401249192,1768072245706,-211.591357,0.00037095,31]
[401249195,1768072245716,-151.0,0.00037095,31]
[401249196,1768072245725,-151.0,0.00037095,31]
[401249199,1768072245734,-151.0,0.00037095,31]
[401249200,1768072245743,-151.0,0.00037095,31]
[401249202,1768072245752,-157.126084,0.00037095,31]
[401249204,1768072245762,-6834.71,0.000371,14]
[401249206,1768072245772,-151.0,0.00037103,31]
[401249208,1768072245781,-151.0,0.00037103,31]
[401249210,1768072245790,-155.211218,0.00037103,31]
[401249212,1768072245800,-171.590858,0.00037103,31]
[401249214,1768072245809,-151.0,0.00037103,31]
[401249216,1768072245819,-151.0,0.00037103,31]
[401249219,1768072245828,-151.0,0.00037103,31]
[401249220,1768072245837,-151.0,0.00037103,31]
[401249222,1768072245847,-151.0,0.00037103,31]
[401249225,1768072245856,-240.800018,0.00037103,31]
[401249227,1768072245866,-151.0,0.00037103,31]
[401249228,1768072245875,-151.0,0.00037103,31]
[401249231,1768072245884,-155.463633,0.00037103,31]
[401249232,1768072245893,-226.952409,0.00037103,31]
[401249234,1768072245903,-245.445707,0.00037103,31]
[401249236,1768072245912,-245.445707,0.00037103,31]
[401249238,1768072245921,-245.445707,0.00037103,31]
[401249241,1768072245930,-245.445707,0.00037103,31]
[401249242,1768072245939,-245.445707,0.00037103,31]
[401249244,1768072245948,-245.445707,0.00037103,31]
[401249246,1768072245957,-245.445707,0.00037103,31]
[401249248,1768072245967,-245.445707,0.00037103,31]
[401249250,1768072245976,-245.445707,0.00037103,31]
[401249252,1768072245985,-245.445707,0.00037103,31]
[401249254,1768072245994,-245.445707,0.00037103,31]
[401249256,1768072246004,-245.445707,0.00037103,31]
[401249258,1768072246014,-245.445707,0.00037103,31]
[401249261,1768072246023,-245.445707,0.00037103,31]
[401249262,1768072246033,-245.445707,0.00037103,31]
[401249264,1768072246043,-245.445707,0.00037103,31]
[401249277,1768072246144,-245.445707,0.00037103,31]
[401249279,1768072246155,-245.445707,0.00037103,31]
[401249281,1768072246164,-245.445707,0.00037103,31]
[401249283,1768072246173,-245.445699,0.00037103,31]
[401249285,1768072246182,-202.167956,0.00037103,31]
[401249287,1768072246191,-151.0,0.00037103,31]
[401249289,1768072246200,-154.250355,0.00037103,31]
[401249291,1768072246210,-479.331389,0.00037103,31]
[401249293,1768072246219,-479.331389,0.00037103,31]
[401249295,1768072246228,-479.331389,0.00037103,31]
[401249297,1768072246237,-479.331389,0.00037103,31]
[401249299,1768072246246,-479.331389,0.00037103,31]
[401249301,1768072246255,-479.331389,0.00037103,31]
[401249303,1768072246264,-479.331389,0.00037103,31]
[401249305,1768072246273,-479.331389,0.00037103,31]
[401249307,1768072246283,-479.331389,0.00037103,31]
[401249309,1768072246293,-479.331389,0.00037103,31]
[401249311,1768072246303,-479.331389,0.00037103,31]
[401249313,1768072246312,-479.331389,0.00037103,31]
[401249315,1768072246322,-479.331389,0.00037103,31]
[401249317,1768072246331,-479.331389,0.00037103,31]
[401249319,1768072246340,-479.331389,0.00037103,31]
[401249321,1768072246351,-479.331389,0.00037103,31]
[401249323,1768072246361,-479.331389,0.00037103,31]
[401249325,1768072246371,-479.331389,0.00037103,31]
[401249327,1768072246383,-479.331389,0.00037103,31]
[401249329,1768072246393,-479.33138,0.00037103,31]
[401249332,1768072246402,-151.0,0.00037103,31]
[401249333,1768072246412,-151.0,0.00037103,31]
[401249335,1768072246421,-151.0,0.00037103,31]
[401249337,1768072246431,-151.0,0.00037103,31]
[401249339,1768072246440,-151.0,0.00037103,31]
[401249341,1768072246451,-151.0,0.00037103,31]
[401249344,1768072246460,-151.0,0.00037103,31]
[401249345,1768072246470,-151.0,0.00037103,31]
[401249347,1768072246480,-151.0,0.00037103,31]
[401249349,1768072246491,-151.0,0.00037103,31]
[401249352,1768072246501,-191.532893,0.00037103,31]
[401249354,1768072246511,-151.895159,0.00037103,31]
[401249356,1768072246521,-151.895159,0.00037103,31]
[401249358,1768072246530,-151.895159,0.00037103,31]
[401249360,1768072246540,-151.895159,0.00037103,31]
[401249362,1768072246550,-151.895159,0.00037103,31]
[401249364,1768072246559,-151.895159,0.00037103,31]
[401249366,1768072246568,-151.895159,0.00037103,31]
[401249368,1768072246578,-151.895159,0.00037103,31]
[401249370,1768072246587,-151.895159,0.00037103,31]
[401249371,1768072246596,-151.895159,0.00037103,31]
[401249372,1768072246605,-151.895159,0.00037103,31]
[401249373,1768072246614,-151.895159,0.00037103,31]
[401249374,1768072246623,-151.895159,0.00037103,31]
[401249375,1768072246632,-151.895159,0.00037103,31]
[401249376,1768072246641,-151.895159,0.00037103,31]
[401249377,1768072246650,-151.895159,0.00037103,31]
[401249378,1768072246660,-151.895159,0.00037103,31]
[401249379,1768072246669,-151.895159,0.00037103,31]
[401249380,1768072246678,-151.895159,0.00037103,31]
[401249381,1768072246687,-151.895151,0.00037103,31]
[401249382,1768072246695,-151.0,0.00037103,31]
[401249383,1768072246704,-151.0,0.00037103,31]
[401249384,1768072246713,-151.0,0.00037103,31]
[401249385,1768072246723,-162.614017,0.00037103,31]
[401249386,1768072246733,-151.366366,0.00037103,2]
[401249387,1768072246742,-151.0,0.00037103,31]
[401249388,1768072246751,-151.0,0.00037103,31]
[401249389,1768072246760,-151.0,0.00037103,31]
[401249390,1768072246770,-1240062.50751542,0.00037103,20]
[401249391,1768072246780,-3829500.45279449,0.00037103,20]
[401249405,1768072388280,184.54813475,0.0002356,120]
[401249450,1768073431791,-1386.8966782,0.0001,2]
[401249452,1768073431800,-560.0,0.0001,2]
[401249454,1768073431810,-187.20492739,0.00011293,2]